[Event "NJSK 2021 Jeugd C"]
[Site "Almelo, Netherlands"]
[Date "2021.08.03"]
[Round "3.2"]
[White "Bakija, Alan"]
[Black "De Winter, Arthur"]
[Result "0-1"]
[TimeControl "90min + 30sec/move"]
[WhiteElo "1870"]
[BlackElo "2000"]

1. c4 {[%clk 01:30:57]} {[%emt 00:00:04]} Nf6 {[%clk 01:30:53]} {[%emt
00:00:06]} 2. Nf3 {[%clk 01:31:24]} {[%emt 00:00:04]} g6 {[%clk 01:31:19]}
{[%emt 00:00:04]} 3. d4 {[%clk 01:31:49]} {[%emt 00:00:05]} Bg7 {[%clk
01:31:44]} {[%emt 00:00:05]} 4. g3 {[%clk 01:32:12]} {[%emt 00:00:07]} O-O
{[%clk 01:32:07]} {[%emt 00:00:06]} 5. Bg2 {[%clk 01:32:40]} {[%emt 00:00:03]}
d6 {[%clk 01:32:24]} {[%emt 00:00:13]} 6. Nc3 {[%clk 01:33:04]} {[%emt
00:00:06]} Nbd7 {[%clk 01:32:36]} {[%emt 00:00:18]} 7. O-O {[%clk 01:33:24]}
{[%emt 00:00:09]} e5 {[%clk 01:32:39]} {[%emt 00:00:27]} 8. dxe5 {[%clk
01:31:29]} {[%emt 00:02:26]} dxe5 {[%clk 01:30:47]} {[%emt 00:02:21]} 9. Bg5
{[%clk 01:31:33]} {[%emt 00:00:27]} h6 {[%clk 01:26:12]} {[%emt 00:05:04]} 10.
Bd2 {[%clk 01:30:50]} {[%emt 00:01:14]} e4 {[%clk 01:21:54]} {[%emt 00:04:48]}
11. Ne1 {[%clk 01:27:49]} {[%emt 00:03:30]} Ne5 {[%clk 01:17:44]} {[%emt
00:04:41]} 12. b3 {[%clk 01:11:33]} {[%emt 00:16:46]} c6 {[%clk 01:03:16]}
{[%emt 00:14:56]} 13. Nc2 {[%clk 01:07:16]} {[%emt 00:04:49]} Qe7 {[%clk
00:57:57]} {[%emt 00:05:49]} 14. h3 {[%clk 00:58:45]} {[%emt 00:09:00]} Rd8
{[%clk 00:51:16]} {[%emt 00:07:10]} 15. Qc1 {[%clk 00:56:32]} {[%emt 00:02:44]}
Kh7 {[%clk 00:49:21]} {[%emt 00:02:24]} 16. Rd1 {[%clk 00:53:21]} {[%emt
00:03:42]} Be6 {[%clk 00:40:35]} {[%emt 00:09:16]} 17. Ne3 {[%clk 00:47:38]}
{[%emt 00:06:13]} Rd4 {[%clk 00:36:32]} {[%emt 00:04:32]} 18. Qc2 {[%clk
00:35:58]} {[%emt 00:12:12]} Rad8 {[%clk 00:32:16]} {[%emt 00:04:45]} 19. Kh2
{[%clk 00:28:33]} {[%emt 00:07:55]} h5 {[%clk 00:28:53]} {[%emt 00:03:54]} 20.
Rac1 {[%clk 00:09:02]} {[%emt 00:20:00]} h4 {[%clk 00:27:38]} {[%emt 00:01:45]}
21. g4 {[%clk 00:08:45]} {[%emt 00:00:47]} Qd6 {[%clk 00:27:17]} {[%emt
00:00:51]} 22. c5 {[%clk 00:03:59]} {[%emt 00:05:17]} 0-1

[Event "NJSK 2021 Jeugd C"]
[Site "Almelo, Netherlands"]
[Date "2021.08.03"]
[Round "3.3"]
[White "Kurt, Sascha"]
[Black "Ekker, Joshua"]
[Result "1-0"]
[TimeControl "90min + 30sec/move"]
[WhiteElo "1650"]
[BlackElo "1695"]

1. e4 {[%clk 01:30:58]} {[%emt 00:00:01]} e5 {[%clk 01:30:55]} {[%emt
00:00:06]} 2. Nf3 {[%clk 01:31:25]} {[%emt 00:00:04]} Nc6 {[%clk 01:31:17]}
{[%emt 00:00:06]} 3. d4 {[%clk 01:31:49]} {[%emt 00:00:06]} exd4 {[%clk
01:31:40]} {[%emt 00:00:07]} 4. Nxd4 {[%clk 01:32:14]} {[%emt 00:00:05]} Bc5
{[%clk 01:32:00]} {[%emt 00:00:10]} 5. Be3 {[%clk 01:32:38]} {[%emt 00:00:06]}
Qf6 {[%clk 01:32:23]} {[%emt 00:00:07]} 6. c3 {[%clk 01:33:04]} {[%emt
00:00:05]} Nge7 {[%clk 01:32:40]} {[%emt 00:00:13]} 7. Bc4 {[%clk 01:33:28]}
{[%emt 00:00:05]} Ne5 {[%clk 01:32:51]} {[%emt 00:00:19]} 8. Be2 {[%clk
01:33:50]} {[%emt 00:00:08]} Qg6 {[%clk 01:33:07]} {[%emt 00:00:14]} 9. O-O
{[%clk 01:34:02]} {[%emt 00:00:18]} d6 {[%clk 01:33:12]} {[%emt 00:00:26]} 10.
f4 {[%clk 01:33:15]} {[%emt 00:01:17]} Qxe4 {[%clk 01:32:48]} {[%emt 00:00:54]}
11. Qd2 {[%clk 01:30:40]} {[%emt 00:03:05]} Ng4 {[%clk 01:21:12]} {[%emt
00:12:06]} 12. Rf3 {[%clk 01:26:42]} {[%emt 00:04:27]} Bxd4 {[%clk 00:56:46]}
{[%emt 00:24:56]} 13. Bxd4 {[%clk 01:26:05]} {[%emt 00:01:08]} O-O {[%clk
00:54:54]} {[%emt 00:02:22]} 14. Rg3 {[%clk 01:22:53]} {[%emt 00:03:43]} f5
{[%clk 00:52:46]} {[%emt 00:02:36]} 15. Na3 {[%clk 01:14:36]} {[%emt 00:08:47]}
Ng6 {[%clk 00:44:06]} {[%emt 00:09:10]} 16. Rf3 {[%clk 01:09:14]} {[%emt
00:05:52]} b6 {[%clk 00:36:41]} {[%emt 00:07:56]} 17. Bc4+ {[%clk 01:07:55]}
{[%emt 00:01:49]} Kh8 {[%clk 00:35:02]} {[%emt 00:02:08]} 18. Bd5 {[%clk
01:05:41]} {[%emt 00:02:44]} Qxd5 {[%clk 00:21:09]} {[%emt 00:14:23]} 19. Bxg7+
{[%clk 01:06:03]} {[%emt 00:00:09]} Kxg7 {[%clk 00:21:29]} {[%emt 00:00:10]} 20.
Qxd5 {[%clk 01:06:26]} {[%emt 00:00:06]} Bd7 {[%clk 00:19:23]} {[%emt
00:02:36]} 21. Re1 {[%clk 01:05:36]} {[%emt 00:01:21]} Rae8 {[%clk 00:14:57]}
{[%emt 00:04:56]} 22. Qd4+ {[%clk 01:04:41]} {[%emt 00:01:25]} Nf6 {[%clk
00:12:12]} {[%emt 00:03:14]} 23. Rfe3 {[%clk 01:03:27]} {[%emt 00:01:44]} Rc8
{[%clk 00:11:17]} {[%emt 00:01:25]} 24. g3 {[%clk 01:03:09]} {[%emt 00:00:48]}
Bc6 {[%clk 00:11:00]} {[%emt 00:00:47]} 25. Nc2 {[%clk 01:02:28]} {[%emt
00:01:12]} Kh6 {[%clk 00:09:42]} {[%emt 00:01:47]} 26. Qd2 {[%clk 01:01:25]}
{[%emt 00:01:33]} Be4 {[%clk 00:09:23]} {[%emt 00:00:49]} 27. Nd4 {[%clk
01:01:19]} {[%emt 00:00:36]} Rg8 {[%clk 00:09:09]} {[%emt 00:00:44]} 28. Ne6
{[%clk 01:00:06]} {[%emt 00:01:43]} Ng4 {[%clk 00:06:55]} {[%emt 00:02:44]} 29.
Rxe4 {[%clk 00:59:10]} {[%emt 00:01:26]} fxe4 {[%clk 00:06:41]} {[%emt
00:00:44]} 30. Rxe4 {[%clk 00:58:06]} {[%emt 00:01:34]} Nh4 {[%clk 00:04:55]}
{[%emt 00:02:17]} 31. f5+ {[%clk 00:56:28]} {[%emt 00:02:08]} Kh5 {[%clk
00:05:01]} {[%emt 00:00:23]} 32. Nf4+ {[%clk 00:56:21]} {[%emt 00:00:38]} 1-0

[Event "NJSK 2021 Jeugd C"]
[Site "Almelo, Netherlands"]
[Date "2021.08.03"]
[Round "3.4"]
[White "Verheij, Dana"]
[Black "Smeets, Kobe"]
[Result "1/2-1/2"]
[TimeControl "90min + 30sec/move"]
[WhiteElo "1931"]
[BlackElo "1897"]

1. e4 {[%clk 01:30:57]} {[%emt 00:00:02]} c5 {[%clk 01:30:55]} {[%emt
00:00:06]} 2. c3 {[%clk 01:31:20]} {[%emt 00:00:07]} Nf6 {[%clk 01:31:18]}
{[%emt 00:00:07]} 3. e5 {[%clk 01:31:38]} {[%emt 00:00:12]} Nd5 {[%clk
01:31:43]} {[%emt 00:00:05]} 4. Nf3 {[%clk 01:31:56]} {[%emt 00:00:12]} Nc6
{[%clk 01:31:54]} {[%emt 00:00:19]} 5. Bc4 {[%clk 01:31:58]} {[%emt 00:00:29]}
Nb6 {[%clk 01:31:42]} {[%emt 00:00:42]} 6. Bb3 {[%clk 01:32:16]} {[%emt
00:00:12]} d5 {[%clk 01:29:15]} {[%emt 00:02:57]} 7. exd6 {[%clk 01:32:05]}
{[%emt 00:00:41]} Qxd6 {[%clk 01:28:38]} {[%emt 00:01:05]} 8. O-O {[%clk
01:32:02]} {[%emt 00:00:34]} Bg4 {[%clk 01:28:29]} {[%emt 00:00:40]} 9. Bxf7+
{[%clk 01:29:27]} {[%emt 00:03:04]} Kd8 {[%clk 01:16:14]} {[%emt 00:12:46]} 10.
h3 {[%clk 01:28:10]} {[%emt 00:01:46]} Bxf3 {[%clk 01:11:11]} {[%emt 00:05:34]}
11. Qxf3 {[%clk 01:27:39]} {[%emt 00:01:01]} Ne5 {[%clk 01:11:32]} {[%emt
00:00:09]} 12. Qf5 {[%clk 01:24:03]} {[%emt 00:04:01]} g6 {[%clk 01:06:59]}
{[%emt 00:05:07]} 13. Qe6 {[%clk 01:23:25]} {[%emt 00:01:07]} Nd3 {[%clk
00:54:04]} {[%emt 00:13:26]} 14. a4 {[%clk 01:19:52]} {[%emt 00:04:02]} Bh6
{[%clk 00:48:52]} {[%emt 00:05:43]} 15. a5 {[%clk 01:16:39]} {[%emt 00:03:44]}
Nd7 {[%clk 00:48:59]} {[%emt 00:00:23]} 16. Na3 {[%clk 01:12:47]} {[%emt
00:04:22]} N7e5 {[%clk 00:48:06]} {[%emt 00:01:23]} 17. Nc4 {[%clk 01:09:13]}
{[%emt 00:04:04]} Nxc4 {[%clk 00:38:26]} {[%emt 00:10:09]} 18. Qxc4 {[%clk
01:09:30]} {[%emt 00:00:13]} Ne5 {[%clk 00:32:23]} {[%emt 00:06:34]} 19. Qd5
{[%clk 01:04:30]} {[%emt 00:05:26]} Rf8 {[%clk 00:27:37]} {[%emt 00:05:19]} 20.
Qxd6+ {[%clk 01:00:27]} {[%emt 00:04:34]} exd6 {[%clk 00:28:06]} {[%emt
00:00:01]} 21. Bd5 {[%clk 01:00:40]} {[%emt 00:00:14]} Rb8 {[%clk 00:27:44]}
{[%emt 00:00:55]} 22. a6 {[%clk 01:00:04]} {[%emt 00:01:05]} b6 {[%clk
00:27:52]} {[%emt 00:00:23]} 23. d4 {[%clk 00:58:42]} {[%emt 00:01:52]} Bxc1
{[%emt 00:00:18]} 24. Raxc1 {[%emt 00:00:13]} Nd3 {[%clk 00:27:36]} {[%emt
00:00:15]} 25. Rc2 {[%clk 00:57:58]} {[%emt 00:01:11]} Nf4 {[%clk 00:25:11]}
{[%emt 00:02:58]} 26. Bb7 {[%clk 00:53:27]} {[%emt 00:04:58]} Kc7 {[%clk
00:25:03]} {[%emt 00:00:40]} 27. dxc5 {[%clk 00:49:15]} {[%emt 00:04:42]} dxc5
{[%clk 00:25:03]} {[%emt 00:00:30]} 28. Rd2 {[%clk 00:49:07]} {[%emt 00:00:35]}
Rbd8 {[%clk 00:24:24]} {[%emt 00:01:12]} 29. Rfd1 {[%clk 00:47:55]} {[%emt
00:01:41]} Rxd2 {[%clk 00:18:28]} {[%emt 00:06:27]} 30. Rxd2 {[%clk 00:48:20]}
{[%emt 00:00:05]} Rd8 {[%clk 00:16:03]} {[%emt 00:02:56]} 31. Rxd8 {[%clk
00:48:22]} {[%emt 00:00:28]} Kxd8 {[%clk 00:16:32]} {[%emt 00:00:01]} 32. Be4
{[%clk 00:47:39]} {[%emt 00:01:09]} b5 {[%clk 00:16:41]} {[%emt 00:00:24]} 33.
Bc6 {[%clk 00:39:52]} {[%emt 00:08:18]} Nd3 {[%clk 00:14:20]} {[%emt 00:02:50]}
34. Bxb5 {[%clk 00:32:36]} {[%emt 00:07:47]} Nxb2 {[%clk 00:14:43]} {[%emt
00:00:07]} 35. f4 {[%clk 00:21:27]} {[%emt 00:11:38]} Nd1 {[%clk 00:14:52]}
{[%emt 00:00:21]} 36. g4 {[%clk 00:20:26]} {[%emt 00:01:31]} Nxc3 {[%clk
00:14:36]} {[%emt 00:00:47]} 37. Bd3 {[%clk 00:20:26]} {[%emt 00:00:27]} Nd5
{[%clk 00:14:47]} {[%emt 00:00:21]} 38. f5 {[%clk 00:19:38]} {[%emt 00:01:19]}
Nf4 {[%clk 00:14:54]} {[%emt 00:00:23]} 39. fxg6 {[%clk 00:17:23]} {[%emt
00:02:44]} hxg6 {[%clk 00:15:22]} {[%emt 00:00:02]} 40. Bf1 {[%clk 00:16:17]}
{[%emt 00:01:36]} g5 {[%clk 00:15:34]} {[%emt 00:00:18]} 41. Kf2 {[%clk
00:16:35]} {[%emt 00:00:11]} c4 {[%clk 00:09:14]} {[%emt 00:06:51]} 42. Bxc4
{[%clk 00:16:14]} {[%emt 00:00:52]} Nxh3+ {[%clk 00:09:37]} {[%emt 00:00:07]}
43. Ke3 {[%clk 00:15:46]} {[%emt 00:00:57]} Ke7 {[%clk 00:07:21]} {[%emt
00:02:47]} 44. Ke4 {[%clk 00:15:19]} {[%emt 00:00:55]} Kf6 {[%clk 00:07:05]}
{[%emt 00:00:48]} 45. Kd5 {[%clk 00:14:26]} {[%emt 00:01:21]} Nf4+ {[%clk
00:06:43]} {[%emt 00:00:53]} 46. Kc6 {[%clk 00:13:36]} {[%emt 00:01:20]} Ke7
{[%clk 00:06:25]} {[%emt 00:00:49]} 47. Kb7 {[%clk 00:07:55]} {[%emt 00:06:10]}
Kd6 {[%clk 00:06:40]} {[%emt 00:00:15]} 48. Kxa7 {[%clk 00:07:33]} {[%emt
00:00:51]} Kc7 {[%clk 00:06:57]} {[%emt 00:00:13]} 1/2-1/2

[Event "NJSK 2021 Jeugd C"]
[Site "Almelo, Netherlands"]
[Date "2021.08.03"]
[Round "3.5"]
[White "Dekker, Thiemen"]
[Black "Kumar, Prayan Sai"]
[Result "1-0"]
[TimeControl "90min + 30sec/move"]
[WhiteElo "1806"]
[BlackElo "1652"]

1. e4 {[%clk 01:30:57]} {[%emt 00:00:02]} c6 {[%clk 01:30:50]} {[%emt
00:00:11]} 2. d4 {[%clk 01:31:23]} {[%emt 00:00:03]} d5 {[%clk 01:30:58]}
{[%emt 00:00:22]} 3. exd5 {[%clk 01:31:48]} {[%emt 00:00:06]} cxd5 {[%clk
01:31:20]} {[%emt 00:00:08]} 4. c4 {[%clk 01:32:12]} {[%emt 00:00:06]} Nf6
{[%clk 01:30:40]} {[%emt 00:01:10]} 5. Nc3 {[%clk 01:32:27]} {[%emt 00:00:15]}
g6 {[%clk 01:30:48]} {[%emt 00:00:22]} 6. Qb3 {[%clk 01:32:34]} {[%emt
00:00:23]} e6 {[%clk 01:26:00]} {[%emt 00:05:18]} 7. Bg5 {[%clk 01:31:01]}
{[%emt 00:02:02]} dxc4 {[%clk 01:22:00]} {[%emt 00:04:30]} 8. Bxc4 {[%clk
01:28:52]} {[%emt 00:02:39]} Bg7 {[%clk 01:18:36]} {[%emt 00:03:54]} 9. Nf3
{[%clk 01:27:48]} {[%emt 00:01:34]} O-O {[%clk 01:17:08]} {[%emt 00:01:58]} 10.
O-O {[%clk 01:27:06]} {[%emt 00:01:13]} Nc6 {[%clk 01:13:13]} {[%emt 00:04:25]}
11. Qd1 {[%clk 01:24:04]} {[%emt 00:03:31]} a6 {[%clk 01:06:46]} {[%emt
00:06:57]} 12. Ne4 {[%clk 01:16:40]} {[%emt 00:18:20]} b5 {[%clk 00:54:33]}
{[%emt 00:03:18]} 13. Nxf6+ {[%clk 01:15:23]} {[%emt 00:01:47]} Bxf6 {[%clk
00:53:41]} {[%emt 00:01:22]} 14. Bxf6 {[%clk 01:15:43]} {[%emt 00:00:10]} Qxf6
{[%clk 00:53:58]} {[%emt 00:00:12]} 15. Bb3 {[%clk 01:13:54]} {[%emt 00:02:20]}
Rd8 {[%clk 00:48:12]} {[%emt 00:06:15]} 16. Qc2 {[%clk 01:09:59]} {[%emt
00:04:25]} Bb7 {[%clk 00:42:53]} {[%emt 00:05:49]} 17. Qc5 {[%clk 01:05:17]}
{[%emt 00:05:12]} Nxd4 {[%clk 00:33:35]} {[%emt 00:09:48]} 18. Nxd4 {[%clk
01:05:24]} {[%emt 00:00:23]} Qxd4 {[%clk 00:33:44]} {[%emt 00:00:21]} 19. Qxd4
{[%clk 01:05:18]} {[%emt 00:00:37]} Rxd4 {[%clk 00:33:35]} {[%emt 00:00:39]} 20.
Rfd1 {[%clk 01:02:04]} {[%emt 00:03:44]} Rad8 {[%clk 00:33:39]} {[%emt
00:00:26]} 21. Rxd4 {[%clk 01:01:54]} {[%emt 00:00:40]} Rxd4 {[%clk 00:34:01]}
{[%emt 00:00:08]} 22. Rd1 {[%clk 01:01:13]} {[%emt 00:01:11]} Rxd1+ {[%clk
00:33:17]} {[%emt 00:01:13]} 23. Bxd1 {[%clk 01:01:39]} {[%emt 00:00:05]} Bd5
{[%clk 00:33:12]} {[%emt 00:00:34]} 24. a3 {[%clk 01:01:35]} {[%emt 00:00:35]}
Kg7 {[%clk 00:32:46]} {[%emt 00:00:56]} 25. f4 {[%clk 01:01:47]} {[%emt
00:00:17]} Kf6 {[%clk 00:32:36]} {[%emt 00:00:40]} 26. Bc2 {[%clk 00:59:42]}
{[%emt 00:02:35]} e5 {[%clk 00:30:59]} {[%emt 00:02:08]} 27. g3 {[%clk
00:59:32]} {[%emt 00:00:39]} exf4 {[%clk 00:31:11]} {[%emt 00:00:18]} 28. gxf4
{[%clk 00:59:53]} {[%emt 00:00:10]} Be6 {[%clk 00:30:58]} {[%emt 00:00:42]} 29.
Kf2 {[%clk 00:58:35]} {[%emt 00:01:48]} Bf5 {[%clk 00:31:18]} {[%emt 00:00:10]}
30. Bb3 {[%clk 00:58:43]} {[%emt 00:00:22]} Be6 {[%clk 00:31:38]} {[%emt
00:00:11]} 31. Bc2 {[%clk 00:59:05]} {[%emt 00:00:08]} Ke7 {[%emt 00:01:33]} 32.
Ke3 {[%clk 00:59:03]} {[%emt 00:00:31]} Kd6 {[%clk 00:30:47]} {[%emt 00:00:18]}
33. Kd4 {[%clk 00:58:52]} {[%emt 00:00:41]} h6 {[%clk 00:28:03]} {[%emt
00:03:14]} 34. Be4 {[%clk 00:56:12]} {[%emt 00:03:10]} f5 {[%clk 00:25:45]}
{[%emt 00:02:48]} 35. Bb7 {[%clk 00:55:46]} {[%emt 00:00:56]} a5 {[%clk
00:25:36]} {[%emt 00:00:40]} 36. h4 {[%clk 00:55:39]} {[%emt 00:00:36]} Bc4
{[%clk 00:24:38]} {[%emt 00:01:28]} 37. a4 {[%clk 00:53:20]} {[%emt 00:02:50]}
Kc7 {[%clk 00:23:59]} {[%emt 00:01:09]} 38. axb5 {[%clk 00:51:00]} {[%emt
00:02:49]} Bxb5 {[%clk 00:24:13]} {[%emt 00:00:16]} 39. Bd5 {[%clk 00:51:09]}
{[%emt 00:00:20]} Be8 {[%clk 00:23:47]} {[%emt 00:00:57]} 40. Ke5 {[%clk
00:50:38]} {[%emt 00:01:01]} Kd7 {[%clk 00:23:22]} {[%emt 00:00:55]} 41. Kf6
{[%clk 00:50:41]} {[%emt 00:00:27]} Kd8 {[%clk 00:23:22]} {[%emt 00:00:31]} 42.
Bf7 {[%clk 00:50:32]} {[%emt 00:00:39]} g5 {[%clk 00:22:53]} {[%emt 00:00:59]}
43. hxg5 {[%clk 00:47:22]} {[%emt 00:03:40]} hxg5 {[%clk 00:23:06]} {[%emt
00:00:17]} 44. fxg5 {[%clk 00:47:01]} {[%emt 00:00:50]} f4 {[%clk 00:23:16]}
{[%emt 00:00:20]} 45. Bd5 {[%clk 00:44:36]} {[%emt 00:02:55]} Kc7 {[%emt
00:01:11]} 46. Kf5 {[%clk 00:43:24]} {[%emt 00:01:28]} Kd6 {[%clk 00:23:01]}
{[%emt 00:00:18]} 47. Bf3 {[%clk 00:43:12]} {[%emt 00:00:42]} Kc5 {[%emt
00:00:09]} 48. Kxf4 {[%clk 00:43:06]} {[%emt 00:00:35]} Kb4 {[%clk 00:23:48]}
{[%emt 00:00:05]} 49. Bd5 {[%emt 00:00:51]} a4 {[%clk 00:24:13]} 50. Kf5 {[%clk
00:42:53]} {[%emt 00:00:25]} a3 {[%clk 00:24:17]} {[%emt 00:00:28]} 51. bxa3+
{[%clk 00:43:19]} {[%emt 00:00:05]} Kxa3 {[%clk 00:24:41]} {[%emt 00:00:06]} 52.
Kf6 {[%clk 00:43:39]} {[%emt 00:00:09]} Bb5 {[%clk 00:24:12]} {[%emt 00:00:59]}
53. g6 {[%clk 00:43:01]} {[%emt 00:01:08]} Bd3 {[%clk 00:24:34]} {[%emt
00:00:08]} 54. g7 {[%clk 00:43:22]} {[%emt 00:00:09]} Bh7 {[%clk 00:24:59]}
{[%emt 00:00:06]} 55. Kg5 {[%clk 00:43:29]} {[%emt 00:00:22]} 1-0

[Event "NJSK 2021 Jeugd C"]
[Site "Almelo, Netherlands"]
[Date "2021.08.03"]
[Round "3.6"]
[White "Katpatal, Akshaj"]
[Black "Arnold, Rhys"]
[Result "0-1"]
[TimeControl "90min + 30sec/move"]
[WhiteElo "1650"]
[BlackElo "1748"]

1. e4 {[%clk 01:30:57]} {[%emt 00:00:03]} c5 {[%clk 01:30:53]} {[%emt
00:00:08]} 2. Nf3 {[%clk 01:31:06]} {[%emt 00:00:21]} Nc6 {[%clk 01:31:01]}
{[%emt 00:00:21]} 3. c3 {[%clk 01:31:16]} {[%emt 00:00:20]} Nf6 {[%clk
01:31:07]} {[%emt 00:00:24]} 4. d3 {[%clk 01:31:18]} {[%emt 00:00:27]} e5
{[%clk 01:31:26]} {[%emt 00:00:12]} 5. Bg5 {[%clk 01:31:41]} {[%emt 00:00:08]}
Be7 {[%clk 01:30:43]} {[%emt 00:01:13]} 6. Be2 {[%clk 01:31:58]} {[%emt
00:00:12]} O-O {[%clk 01:30:50]} {[%emt 00:00:23]} 7. Nbd2 {[%clk 01:32:17]}
{[%emt 00:00:12]} h6 {[%clk 01:30:32]} {[%emt 00:00:47]} 8. Bh4 {[%clk
01:32:34]} {[%emt 00:00:12]} d6 {[%clk 01:30:34]} {[%emt 00:00:29]} 9. h3
{[%clk 01:32:26]} {[%emt 00:00:37]} Be6 {[%clk 01:30:06]} {[%emt 00:00:59]} 10.
g4 {[%clk 01:32:01]} {[%emt 00:00:54]} Rc8 {[%clk 01:23:50]} {[%emt 00:06:47]}
11. Rg1 {[%clk 01:30:59]} {[%emt 00:01:32]} Nh7 {[%clk 01:22:33]} {[%emt
00:01:47]} 12. Bg3 {[%clk 01:30:58]} {[%emt 00:00:29]} Ng5 {[%clk 01:20:12]}
{[%emt 00:02:52]} 13. Nxg5 {[%clk 01:30:44]} {[%emt 00:00:44]} Bxg5 {[%clk
01:20:21]} {[%emt 00:00:22]} 14. Nf3 {[%clk 01:31:05]} {[%emt 00:00:09]} Be7
{[%clk 01:20:19]} {[%emt 00:00:33]} 15. Qd2 {[%clk 01:30:22]} {[%emt 00:01:12]}
Kh7 {[%clk 01:17:31]} {[%emt 00:03:17]} 16. Nh2 {[%clk 01:28:15]} {[%emt
00:02:37]} d5 {[%clk 01:15:23]} {[%emt 00:02:40]} 17. Bf3 {[%clk 01:27:46]}
{[%emt 00:00:57]} Bg5 {[%clk 01:14:35]} {[%emt 00:01:19]} 18. Qc2 {[%clk
01:26:14]} {[%emt 00:02:01]} d4 {[%clk 01:14:29]} {[%emt 00:00:38]} 19. a3
{[%clk 01:25:56]} {[%emt 00:00:47]} c4 {[%clk 01:13:14]} {[%emt 00:01:45]} 20.
Be2 {[%clk 01:25:47]} {[%emt 00:00:38]} cxd3 {[%clk 01:12:44]} {[%emt
00:01:01]} 21. Bxd3 {[%clk 01:25:26]} {[%emt 00:00:51]} dxc3 {[%emt 00:05:17]}
22. bxc3 {[%clk 01:25:09]} {[%emt 00:00:09]} Nd4 {[%clk 01:08:44]} {[%emt
00:00:21]} 23. Qb1 {[%clk 01:25:37]} {[%emt 00:00:02]} Nb3 {[%clk 01:08:41]}
{[%emt 00:00:33]} 24. Bxe5 {[%clk 01:25:09]} {[%emt 00:00:57]} Nxa1 {[%clk
01:08:50]} {[%emt 00:00:22]} 25. f4 {[%clk 01:24:49]} {[%emt 00:00:51]} Bh4+
{[%clk 01:08:59]} {[%emt 00:00:20]} 26. Ke2 {[%clk 01:24:49]} {[%emt 00:00:28]}
Nb3 {[%clk 01:08:37]} {[%emt 00:00:53]} 27. Nf3 {[%clk 01:24:40]} {[%emt
00:00:39]} Nc5 {[%clk 01:06:55]} {[%emt 00:02:12]} 28. g5 {[%clk 01:24:13]}
{[%emt 00:00:57]} Nxd3 {[%clk 01:06:33]} {[%emt 00:00:53]} 29. Bd4 {[%clk
01:23:32]} {[%emt 00:00:46]} Nxf4+ {[%clk 01:06:46]} {[%emt 00:00:42]} 30. Kd1
{[%clk 01:23:37]} {[%emt 00:00:23]} Bxg5 {[%clk 01:07:03]} {[%emt 00:00:14]} 31.
h4 {[%clk 01:23:44]} {[%emt 00:00:23]} Bf6 {[%clk 01:07:22]} {[%emt 00:00:11]}
32. e5+ {[%clk 01:24:06]} {[%emt 00:00:09]} g6 {[%clk 01:07:23]} {[%emt
00:02:16]} 33. exf6 {[%clk 01:26:04]} {[%emt 00:00:30]} Qd5 {[%clk 01:06:59]}
{[%emt 00:00:55]} 34. Rg3 {[%clk 01:25:25]} {[%emt 00:01:09]} Bg4 {[%clk
01:07:06]} {[%emt 00:00:23]} 35. Ke1 {[%clk 01:25:31]} {[%emt 00:00:23]} Rfe8+
{[%clk 01:07:17]} {[%emt 00:00:20]} 36. Kf2 {[%clk 01:25:50]} {[%emt 00:00:10]}
Bxf3 {[%clk 01:07:21]} {[%emt 00:00:26]} 37. Rxf3 {[%clk 01:26:06]} {[%emt
00:00:14]} Re2+ {[%clk 01:07:44]} {[%emt 00:00:07]} 38. Kg3 {[%clk 01:26:33]}
{[%emt 00:00:03]} Nh5+ {[%clk 01:07:42]} {[%emt 00:00:32]} 39. Kg4 {[%clk
01:26:50]} {[%emt 00:00:13]} Qd7+ {[%clk 01:07:45]} {[%emt 00:00:25]} 40. Rf5
{[%clk 01:26:53]} {[%emt 00:00:29]} Qxf5+ {[%clk 01:07:56]} {[%emt 00:00:19]}
41. Qxf5 {[%clk 01:27:05]} {[%emt 00:00:18]} gxf5+ {[%clk 01:08:19]} {[%emt
00:00:07]} 42. Kxh5 {[%clk 01:27:27]} {[%emt 00:00:08]} Rg2 {[%clk 01:08:22]}
{[%emt 00:00:27]} 43. c4 {[%clk 01:27:50]} {[%emt 00:00:07]} f4 {[%clk
01:08:46]} {[%emt 00:00:07]} 44. c5 {[%clk 01:28:04]} {[%emt 00:00:15]} Rd8
{[%clk 01:09:02]} {[%emt 00:00:13]} 45. c6 {[%clk 01:28:28]} {[%emt 00:00:07]}
Rd5+ {[%clk 01:09:27]} {[%emt 00:00:03]} 46. Be5 {[%clk 01:28:55]} {[%emt
00:00:04]} Rxe5# {[%clk 01:09:20]} {[%emt 00:00:58]} 0-1